bitfinex/quotes_ETHUSD_20240621
["timestamp","ask_amount","ask_price","bid_price","bid_amount"]
[1718978485275,2.30083,3477.0,3475.6,2.4897]
[1718978485276,2.30142,3476.2,3475.6,2.4897]
[1718978485470,2.30128,3476.4,3475.6,2.4897]
[1718978485674,3.0,3476.5,3475.6,2.4897]
[1718978485879,5.30096,3476.9,3475.6,2.4897]
[1718978486126,2.30109,3476.7,3475.7,2.780787]
[1718978486417,5.30109,3476.7,3475.7,2.780787]
[1718978486578,2.30109,3476.7,3475.7,2.780787]
[1718978486776,2.30117,3476.5,3475.7,0.479157]
[1718978487026,2.30117,3476.5,3475.8,0.2968857]
[1718978487218,2.30123,3476.4,3475.8,0.2968857]
[1718978487429,2.30137,3476.2,3475.8,0.2968857]
[1718978487577,2.3013,3476.3,3475.8,0.2968857]
[1718978487973,2.3011,3476.6,3475.9,0.32657427]
[1718978488279,2.30142,3476.2,3475.9,0.32657427]
[1718978488481,2.30142,3476.2,3475.8,0.2968857]
[1718978488700,2.3013,3476.3,3475.8,0.2968857]
[1718978489059,2.30124,3476.4,3475.8,0.2968857]
[1718978489211,4.60264,3476.3,3475.8,0.2968857]
[1718978489408,5.30136,3476.2,3475.6,2.4897]
[1718978489710,3.0,3476.7,3475.1,2.2645]
[1718978489711,2.30149,3476.0,3475.1,2.2645]
[1718978489916,2.30159,3475.9,3475.1,2.2645]
[1718978490121,2.30149,3476.1,3475.2,2.52847]
[1718978490312,2.30149,3476.0,3475.2,0.22645]
[1718978490727,3.0,3476.3,3475.3,2.30195]
[1718978490925,2.30134,3476.3,3475.4,3.011328]
[1718978491445,2.3013,3476.3,3475.5,2.30182]
[1718978491608,2.3013,3476.3,3475.4,0.709498]
[1718978491609,2.30137,3476.2,3475.4,3.011378]
[1718978491808,5.30123,3476.4,3475.4,3.011378]
[1718978492061,2.2991,3477.2,3475.4,0.709498]
[1718978492221,2.30084,3477.0,3476.1,2.30136]
[1718978492422,2.30077,3477.1,3475.9,2.30155]
[1718978492787,2.59513634,3477.6,3476.0,0.460317]
[1718978493047,2.59513634,3477.6,3475.5,2.3772]
[1718978493048,2.30143,3476.1,3475.5,2.3772]
[1718978493219,2.2724,3476.8,3475.5,2.3772]
[1718978493220,2.30124,3476.4,3475.5,2.3772]
[1718978493424,2.30097,3476.8,3475.5,2.3772]
[1718978493627,2.30109,3476.6,3475.7,2.30162]
[1718978493946,2.30089,3477.0,3476.2,2.30135]
[1718978494111,0.75,3478.3,3476.2,2.30135]
[1718978494112,2.30051,3477.5,3476.3,2.30129]
[1718978494309,2.30069,3477.3,3476.4,2.30122]
[1718978494509,2.30057,3477.4,3476.4,2.30122]
[1718978494510,2.30071,3477.2,3476.4,2.30122]
[1718978494709,2.30071,3477.2,3476.4,2.999511]
[1718978495120,2.30054,3477.5,3476.4,2.999511]
[1718978495426,2.30068,3477.3,3476.4,2.999501]
[1718978495618,2.30068,3477.3,3476.5,2.30116]
[1718978495814,2.30083,3477.0,3476.6,0.7681141]
[1718978496020,4.99341787,3478.2,3476.3,2.3804]
[1718978496021,2.30037,3477.7,3476.3,2.3804]
[1718978496241,2.3009,3476.9,3476.3,2.3804]
[1718978496439,2.3009,3476.9,3475.2,4.03001]
[1718978496440,2.30097,3476.8,3476.0,2.30148]
[1718978497241,3.0,3477.3,3476.5,2.30111]
[1718978497440,3.0,3477.4,3476.8,2.30095]
[1718978497681,2.30042,3477.7,3476.8,2.30095]
[1718978497881,2.30042,3477.7,3476.6,2.30109]
[1718978497882,5.30042,3477.7,3476.9,2.30089]
[1718978498052,2.30017,3478.0,3477.2,2.30068]
[1718978498256,2.30032,3477.8,3477.0,2.30079]
[1718978498555,2.30032,3477.8,3477.1,2.30075]
[1718978498740,2.30024,3477.9,3477.1,2.30075]
[1718978498939,2.30004,3478.2,3477.1,2.30076]
[1718978499144,2.30004,3478.2,3477.1,2.760925]
[1718978499381,5.29994,3478.4,3477.4,2.30056]
[1718978499591,5.29978,3478.6,3477.8,2.30028]
[1718978499882,5.29951,3479.0,3477.9,2.30023]
[1718978500106,2.29958,3478.9,3478.1,2.3001]
[1718978500309,3.0,3479.0,3478.5,2.29983]
[1718978500443,2.29861,3480.4,3478.5,2.29983]
[1718978500444,2.29898,3479.8,3478.5,0.229983]
[1718978500643,2.29919,3479.5,3478.7,2.2997]
[1718978500843,2.29898,3479.8,3478.9,2.29955]
[1718978501043,2.29918,3479.5,3478.7,2.29964]
[1718978501576,2.29911,3479.7,3478.7,2.29964]
[1718978501777,2.29911,3479.6,3478.6,2.29977]
[1718978501995,2.29902,3479.8,3478.6,2.29977]
[1718978502157,2.2991,3479.7,3478.8,2.29963]
[1718978502475,2.2991,3479.7,3478.4,2.4934]
[1718978502476,2.29885,3480.0,3479.1,2.29938]
[1718978502892,2.29879,3480.1,3479.2,2.29934]
[1718978503103,2.29879,3480.1,3479.1,2.29938]
[1718978503104,2.29879,3480.1,3479.3,2.29931]
[1718978503377,2.29868,3480.3,3479.5,2.29911]
[1718978503378,2.29865,3480.3,3479.5,2.29911]
[1718978503594,2.29845,3480.7,3479.3,4.63935]
[1718978503746,2.29862,3480.4,3479.5,2.29911]
[1718978504307,2.29858,3480.5,3479.5,2.29911]
[1718978504308,2.29865,3480.3,3479.5,2.29911]
[1718978504453,2.29858,3480.4,3479.5,2.29911]
[1718978504813,3.0,3480.4,3479.5,2.29911]
[1718978504954,2.29859,3480.4,3479.5,2.29911]
[1718978505297,2.29859,3480.4,3479.5,2.29916]
[1718978505298,2.29865,3480.3,3479.5,2.29916]
[1718978505459,5.29865,3480.3,3479.5,2.29916]
[1718978506097,5.29865,3480.3,3479.3,4.63941]
[1718978506098,2.29878,3480.1,3479.3,4.63941]
[1718978506597,2.29878,3480.1,3479.1,2.29938]
[1718978506598,2.29912,3479.6,3478.8,2.29962]
[1718978506783,2.29891,3479.9,3478.8,2.29962]
[1718978507092,4.02675,3480.2,3478.7,2.29967]
[1718978507093,2.29905,3479.7,3478.7,2.29967]
[1718978507260,2.29915,3479.6,3478.8,2.29962]
[1718978507868,2.29918,3479.5,3478.6,4.74111]
[1718978508268,3.0,3479.6,3478.6,2.4414]
[1718978508468,2.29927,3479.4,3478.6,2.4414]
[1718978508669,2.29911,3479.6,3478.6,2.4414]
[1718978508670,2.29931,3479.3,3478.6,2.4414]
[1718978508881,3.0,3479.5,3478.6,2.4414]
[1718978508882,2.29939,3479.2,3478.6,2.4414]
[1718978509093,3.0,3479.5,3478.6,4.74117]
[1718978509281,2.29925,3479.4,3478.6,4.74117]
[1718978509680,2.29925,3479.4,3478.6,2.4414]
[1718978509888,2.2994,3479.2,3478.3,4.99597]
[1718978510215,5.29937,3479.3,3478.3,2.29997]
[1718978510505,5.29938,3479.2,3478.4,2.2999]
[1718978510708,2.29919,3479.5,3478.7,2.2997]
[1718978510916,3.0,3479.7,3478.8,2.29964]
[1718978511126,2.29812,3481.1,3478.3,2.696]
[1718978511127,2.29897,3479.9,3478.9,0.229964]
[1718978511272,0.28566343,3480.6,3478.9,2.29954]
[1718978511472,0.28566343,3480.6,3478.4,2.2659]
[1718978511473,2.29918,3479.5,3478.6,2.29971]
[1718978511676,2.4915,3480.7,3478.6,2.29971]
[1718978511677,2.29904,3479.8,3479.0,2.29949]
[1718978512233,2.29904,3479.8,3478.9,2.29957]
[1718978512377,5.29886,3480.0,3478.6,2.29975]
[1718978512378,2.29919,3479.5,3478.6,2.29971]
[1718978512579,2.29891,3479.9,3478.8,2.29964]
[1718978512580,5.29898,3479.8,3478.8,2.29964]
[1718978512834,2.29891,3479.9,3478.8,2.29957]
[1718978512979,2.29901,3479.8,3479.0,2.29949]
[1718978513419,2.2991,3479.7,3478.8,2.29957]
[1718978513574,5.29896,3479.9,3478.7,2.2997]
[1718978513909,3.0,3480.1,3479.2,2.29935]
[1718978514111,5.2988,3480.1,3479.3,2.29928]
[1718978514409,5.2988,3480.1,3479.2,2.29937]
[1718978514410,2.2988,3480.1,3479.2,2.29937]
[1718978514616,5.29887,3480.0,3478.7,2.29969]
[1718978514921,1.728,3480.3,3478.5,0.55]
[1718978514922,2.29911,3479.6,3478.8,2.29963]
[1718978515289,2.29912,3479.6,3478.8,2.29963]
[1718978515518,2.29912,3479.6,3478.5,0.55]
[1718978515519,2.29918,3479.5,3478.5,0.55]
[1718978515717,5.29918,3479.5,3478.5,2.84984]
[1718978515944,3.0,3479.5,3478.7,2.29969]
[1718978516143,5.29905,3479.7,3478.6,2.29977]
[1718978516307,5.29905,3479.7,3478.0,2.3001]
[1718978516308,2.29959,3478.9,3478.0,2.3001]
[1718978516508,4.1453,3479.6,3477.9,4.79308]
[1718978516509,1.728,3479.2,3477.9,4.79308]
[1718978516708,1.728,3479.2,3477.9,2.4929]
[1718978516935,2.29981,3478.6,3477.9,2.4929]
[1718978517404,2.29964,3478.9,3477.9,2.4929]
[1718978517405,2.29971,3478.7,3477.9,4.79313]
[1718978517835,5.29964,3478.8,3477.9,2.4929]
[1718978518061,2.29964,3478.8,3477.9,2.4929]
[1718978518858,2.2997,3478.7,3477.9,4.79313]
[1718978519367,2.29963,3478.9,3478.0,2.30016]
[1718978519556,5.29957,3479.0,3478.0,2.30016]
[1718978519756,2.667,3479.0,3477.9,4.79313]
[1718978520068,2.29964,3478.8,3477.9,4.79313]
[1718978520273,2.29984,3478.5,3477.6,2.696]
[1718978520476,2.29975,3478.7,3477.8,2.30029]
[1718978520637,2.29984,3478.5,3477.5,2.30045]
[1718978520841,2.29984,3478.5,3477.4,2.3844]
[1718978520842,2.29987,3478.5,3477.4,2.3844]
[1718978521055,2.29991,3478.4,3477.4,4.6849]
[1718978521242,2.29991,3478.4,3477.6,2.30037]
[1718978521455,2.29991,3478.4,3477.7,2.30036]
[1718978521638,4.02764,3478.8,3478.0,2.30016]
[1718978521639,2.29967,3478.8,3478.0,2.30016]
[1718978521838,3.0,3478.8,3478.0,0.230016]
[1718978522068,2.29945,3479.1,3478.3,2.29997]
[1718978522269,3.0,3479.2,3477.6,2.30037]
[1718978522480,5.29924,3479.4,3477.7,2.459]
[1718978522660,2.29939,3479.2,3478.4,2.29987]
[1718978522860,2.29963,3478.9,3478.0,2.30011]
[1718978523064,2.29951,3479.0,3478.1,2.30004]
[1718978523268,4.728,3479.3,3477.7,4.75933]
[1718978523269,4.728,3479.3,3477.7,2.459]
[1718978523478,4.1197,3478.8,3477.2,2.3273]
[1718978523653,2.29978,3478.6,3477.5,2.30049]
[1718978523853,2.29978,3478.6,3477.6,0.747112]
[1718978523854,2.2999,3478.4,3477.6,0.747112]
[1718978524179,2.30026,3477.9,3477.3,2.87]
[1718978524392,2.30044,3477.6,3477.3,2.87]
[1718978524683,4.60069,3477.8,3476.9,2.30084]
[1718978524837,2.30032,3477.8,3476.9,2.986079]
[1718978525036,2.30043,3477.6,3476.9,2.986079]
[1718978525240,2.30043,3477.6,3476.9,0.685239]
[1718978525473,2.30051,3477.5,3476.9,0.685239]
[1718978525673,2.30029,3477.9,3477.1,2.30076]
[1718978525881,3.0,3478.1,3477.2,2.30069]
[1718978526051,2.29997,3478.3,3477.1,0.5286909]
[1718978526052,2.30004,3478.2,3477.1,0.5286909]
[1718978526256,2.30017,3478.0,3477.2,2.88224399]
[1718978526546,3.0,3478.1,3477.3,2.30063]
[1718978526749,2.30002,3478.3,3477.4,2.30055]
[1718978527066,2.30002,3478.3,3477.7,2.30031]
[1718978527067,3.0,3478.3,3477.7,2.30031]
[1718978527268,2.29984,3478.5,3477.5,4.61084]
[1718978527269,2.29984,3478.5,3477.5,2.3104]
[1718978527469,2.29998,3478.3,3477.5,4.6109]
[1718978527680,3.0,3478.4,3477.5,2.3104]
[1718978527881,3.0,3478.8,3477.7,2.30036]
[1718978528103,3.0,3478.9,3477.9,2.30023]
[1718978528319,2.2997,3478.8,3477.9,2.30022]
[1718978528676,2.29971,3478.7,3477.9,2.30022]
[1718978529070,5.29971,3478.7,3477.9,2.30022]
[1718978529273,5.29971,3478.7,3477.9,3.01860373]
[1718978529515,3.0,3478.6,3477.9,3.01860373]
[1718978529691,3.0,3478.8,3477.5,2.3104]
[1718978529692,2.29988,3478.5,3477.5,2.3104]
[1718978530017,6.50599,3479.2,3477.1,2.30074]
[1718978530018,2.30024,3477.9,3477.1,2.30074]
[1718978530199,2.30018,3478.0,3477.3,2.30061]
[1718978530396,2.30018,3478.0,3477.3,0.706748]
[1718978530714,1.728,3478.0,3476.5,2.4139]
[1718978530886,2.3776,3478.2,3476.5,2.4139]
[1718978530887,2.30078,3477.1,3476.5,2.4139]
[1718978531215,2.30078,3477.1,3476.0,4.71539]
[1718978531216,2.3009,3476.9,3476.0,4.71539]
[1718978531530,4.02831,3477.8,3476.0,2.4139]
[1718978531531,2.30108,3476.7,3476.0,2.4139]
[1718978531673,2.30113,3476.6,3476.0,2.4139]
[1718978532021,2.30108,3476.7,3475.5,2.30179]
[1718978532022,2.30116,3476.5,3475.5,4.71492]
[1718978532173,2.30094,3476.9,3475.6,0.741092]
[1718978532174,2.30129,3476.3,3475.6,0.741092]
[1718978532373,2.30129,3476.3,3475.5,2.4131]
[1718978532374,2.30143,3476.1,3475.5,2.4131]
[1718978532575,5.30129,3476.3,3475.5,2.4131]
[1718978532907,2.30136,3476.2,3475.5,2.4131]
[1718978533206,2.30123,3476.4,3475.3,2.4993]
[1718978533430,3.0,3476.5,3475.4,0.480135]
[1718978533431,2.30149,3476.1,3475.4,0.480135]
[1718978533570,2.30149,3476.1,3475.3,2.4993]
[1718978533777,5.30119,3476.5,3475.3,2.4993]
[1718978533976,3.0,3476.4,3475.3,2.4993]
[1718978534176,3.0,3476.4,3475.3,4.80124]
[1718978534381,2.30119,3476.5,3474.4,2.30254]
[1718978534382,2.30195,3475.4,3474.4,2.30254]
[1718978534624,2.30215,3475.1,3474.1,2.3027]
[1718978534815,1.728,3475.8,3474.3,2.30261]
[1718978534816,2.30203,3475.2,3474.3,2.30261]
[1718978535018,2.30211,3475.1,3474.2,2.763211]
[1718978535336,2.30217,3475.0,3474.2,2.763211]
[1718978535629,2.30209,3475.1,3474.2,5.065831]
[1718978535778,2.30209,3475.1,3474.3,2.8091931]
[1718978536292,2.30209,3475.1,3474.3,2.30261]
[1718978536681,2.30201,3475.3,3474.4,2.30252]
[1718978536882,2.30205,3475.2,3474.3,2.30261]
[1718978537083,2.30205,3475.2,3473.9,2.30287]
[1718978537307,3.0,3475.4,3474.3,2.30256]
[1718978537513,2.30235,3474.8,3474.0,0.230287]
[1718978537780,2.30235,3474.8,3473.5,7.44754]
[1718978538222,2.30235,3474.8,3473.6,2.30302]
[1718978538223,2.30249,3474.5,3473.6,2.30302]
[1718978538387,1.728,3474.8,3473.5,5.1444]
[1718978538586,2.30268,3474.3,3473.6,0.51444]
[1718978538820,2.30255,3474.5,3473.6,0.51444]
[1718978539022,5.30239,3474.7,3473.6,0.51444]
[1718978539193,2.30243,3474.6,3473.8,2.30292]
[1718978539527,2.30243,3474.6,3473.9,0.281736]
[1718978540017,2.30249,3474.5,3473.9,0.281736]
[1718978540389,2.30263,3474.3,3473.6,0.51444]
[1718978540922,2.30255,3474.4,3473.6,2.81751]
[1718978541303,2.30255,3474.4,3473.7,1.0265]
[1718978541902,4.03042,3474.6,3473.5,2.87]
[1718978542109,4.03042,3474.6,3472.7,2.30362]
[1718978542110,2.30309,3473.6,3472.7,2.30362]
[1718978542420,2.30315,3473.5,3472.7,2.30362]
[1718978542725,2.30329,3473.3,3472.5,2.30377]
[1718978543088,2.30319,3473.5,3472.6,2.30373]
[1718978543294,2.30328,3473.3,3472.6,2.30373]
[1718978543530,2.30328,3473.3,3472.5,2.30381]
[1718978543690,2.30328,3473.3,3472.6,0.460769]
[1718978544095,2.30328,3473.3,3472.5,2.30381]
[1718978544307,2.30323,3473.4,3472.4,2.30387]
[1718978544508,2.30335,3473.2,3472.4,2.30387]
[1718978545427,2.30323,3473.4,3472.4,2.30387]
[1718978545428,2.30329,3473.3,3472.4,2.30387]
[1718978545594,2.30329,3473.3,3471.7,5.0003]
[1718978545595,2.30329,3473.3,3472.5,2.534197]
[1718978546507,2.30328,3473.3,3472.5,2.534197]
[1718978546718,5.30303,3473.7,3472.9,2.30352]
[1718978546945,2.30296,3473.8,3472.6,2.3359]
[1718978547134,2.30282,3474.0,3472.7,3.3406157]
[1718978547431,2.3382,3474.3,3473.2,2.30329]
[1718978547432,5.30275,3474.1,3473.2,2.30329]
[1718978547619,2.30275,3474.1,3473.2,2.30329]
[1718978548026,2.30275,3474.1,3473.3,2.30325]
[1718978548226,2.30253,3474.5,3473.6,2.30302]
[1718978548461,2.30258,3474.4,3473.6,2.30302]
[1718978548604,2.30214,3475.1,3474.1,2.30273]
[1718978548808,2.30217,3475.0,3473.8,2.30291]
[1718978549127,2.30217,3475.0,3473.3,0.460654]
[1718978549128,2.30237,3474.7,3473.9,2.763469]
[1718978549353,2.30229,3474.9,3473.9,2.763469]
[1718978549354,2.30242,3474.6,3473.9,2.763469]
[1718978549533,2.30242,3474.6,3473.9,0.460589]
[1718978550047,2.30249,3474.5,3473.9,0.460589]
[1718978550553,2.30242,3474.6,3473.9,0.460589]
[1718978550712,2.30234,3474.8,3474.0,0.2763529]
[1718978550918,2.30202,3475.3,3474.0,0.2763529]
[1718978550919,5.30223,3474.9,3474.1,2.30275]
[1718978551117,2.3023,3474.8,3474.0,0.2763529]
[1718978551343,2.30235,3474.7,3474.0,0.2763529]
[1718978551513,5.30216,3475.0,3474.1,0.30398219]
[1718978551853,2.30231,3474.8,3474.1,2.60673219]
[1718978552241,3.0,3474.9,3473.4,2.30321]
[1718978552242,2.3027,3474.2,3473.4,2.30321]
[1718978552765,2.3027,3474.2,3473.0,5.1511]
[1718978553124,2.30288,3474.0,3473.2,2.30334]
[1718978553279,2.3027,3474.2,3473.2,0.975786]
[1718978553430,2.30228,3474.9,3473.3,2.30327]
[1718978553431,2.30275,3474.1,3473.3,2.30327]
[1718978553628,2.30262,3474.3,3473.3,2.30327]
[1718978553828,2.30249,3474.5,3473.6,2.30308]
[1718978554069,2.30261,3474.4,3473.6,2.763715]
[1718978554231,3.0,3474.4,3473.3,2.30328]
[1718978554436,2.30276,3474.1,3473.4,2.30321]
[1718978554629,3.0,3474.3,3473.4,2.30321]
[1718978554869,2.30249,3474.5,3473.7,2.303]
[1718978555077,5.30236,3474.7,3473.7,2.763571]
[1718978555388,3.0,3474.7,3473.8,2.30294]
[1718978555672,7.4,3474.8,3474.4,2.30254]
[1718978555890,19.57,3475.3,3474.4,2.30255]
[1718978556082,19.57,3475.3,3474.8,2.30223]
[1718978556374,19.57,3475.3,3474.7,2.30235]
[1718978556548,19.57,3475.3,3474.8,2.30227]
[1718978556962,19.57,3475.3,3474.7,2.30235]
[1718978557168,19.57,3475.3,3474.6,2.30241]
[1718978557374,19.57,3475.3,3474.8,2.30228]
[1718978557556,19.57,3475.3,3474.7,2.5786332]
[1718978557956,19.57,3475.3,3474.5,0.460522]
[1718978558193,19.57,3475.3,3474.1,2.30275]
[1718978558194,2.30216,3475.0,3474.1,2.30275]
[1718978558353,2.30223,3474.9,3474.2,2.30268]
[1718978558553,2.30231,3474.8,3473.7,0.30084045]
[1718978558789,2.30231,3474.8,3473.5,2.30312]
[1718978558790,2.30262,3474.3,3473.5,2.30312]
[1718978559052,2.30269,3474.2,3473.5,2.30312]
[1718978559286,3.0,3474.4,3473.5,2.30309]
[1718978559466,2.30256,3474.4,3473.5,2.30309]
[1718978559645,2.30268,3474.3,3473.5,2.30309]
[1718978559850,2.3025,3474.5,3473.6,2.30302]
[1718978560050,2.3025,3474.5,3473.3,2.4398]
[1718978560051,2.30262,3474.3,3473.5,2.30315]
[1718978560452,2.30256,3474.4,3473.6,2.30305]
[1718978560698,5.30242,3474.6,3473.5,2.30315]
[1718978560985,3.0,3474.5,3473.6,2.777375]
[1718978561149,5.3024,3474.7,3473.9,2.30288]
[1718978561349,5.3024,3474.7,3473.4,2.30321]
[1718978561350,3.0,3474.7,3473.4,2.30321]
[1718978561578,2.30274,3474.2,3473.4,2.30321]
[1718978561764,2.30262,3474.3,3473.5,2.8613246]
[1718978562091,2.30268,3474.3,3473.5,2.30309]
[1718978562249,2.30268,3474.2,3473.5,2.30309]
[1718978562889,3.0,3474.6,3473.3,2.30328]
[1718978563047,10.4,3474.8,3473.5,2.30309]
[1718978563249,10.4,3474.8,3473.6,2.30307]
[1718978563250,2.30249,3474.5,3473.6,2.30307]
[1718978563488,2.30256,3474.4,3473.6,2.30307]
[1718978563692,2.30256,3474.4,3473.5,2.30315]
[1718978563693,5.30256,3474.4,3473.5,2.30315]
[1718978563864,5.30256,3474.4,3473.5,2.30308]
[1718978563865,2.30262,3474.3,3473.5,2.30308]
[1718978564070,2.30281,3474.1,3473.3,2.30328]
[1718978564391,2.30269,3474.2,3473.3,2.30328]
[1718978564852,2.30276,3474.1,3473.4,2.3032]
[1718978565053,2.30276,3474.1,3473.3,2.30327]
[1718978565354,2.30276,3474.1,3473.4,2.3032]
[1718978565561,5.30276,3474.1,3473.4,2.3032]
[1718978565783,2.30276,3474.1,3473.4,2.3032]
[1718978565986,2.30288,3473.9,3473.0,2.88]
[1718978566189,2.30301,3473.7,3472.9,2.30354]
[1718978566663,2.30302,3473.7,3472.8,4.60716]
[1718978566864,2.30317,3473.5,3472.9,0.69109]
[1718978567094,12.703,3473.8,3472.6,2.30374]
[1718978567277,7.4,3473.8,3472.5,2.3476]
[1718978567451,7.4,3473.8,3472.8,2.30357]
[1718978567659,7.4,3473.8,3473.3,2.30328]
[1718978567887,7.4,3474.2,3473.2,2.30334]
[1718978568140,3.0,3474.1,3472.9,2.803497]
[1718978568389,2.30308,3473.7,3472.9,2.803497]
[1718978568689,2.30311,3473.6,3472.9,0.499957]
[1718978568894,2.30311,3473.6,3472.9,2.803497]
[1718978569265,3.0,3473.7,3472.9,0.499957]
[1718978569470,2.30295,3473.8,3472.9,0.499957]
[1718978569471,2.30309,3473.6,3472.9,2.803477]
[1718978569952,3.0,3473.7,3472.9,2.803477]
[1718978569953,5.30303,3473.7,3472.9,2.803477]
[1718978570350,2.30328,3473.4,3472.6,2.30374]
[1718978570613,2.30328,3473.4,3472.7,2.30367]
[1718978570903,4.697,3473.6,3472.8,2.30361]
[1718978570904,5.30316,3473.5,3472.8,2.30361]
[1718978572340,2.30322,3473.4,3472.7,2.30367]
[1718978573390,2.30322,3473.4,3472.5,2.30381]
[1718978573688,2.30322,3473.4,3472.5,2.764584]
[1718978574603,3.0,3473.5,3472.8,2.30361]
[1718978574604,5.30316,3473.5,3472.8,2.30361]
[1718978575229,3.0,3473.5,3473.1,2.30336]
[1718978575540,2.30317,3473.5,3472.6,2.30373]
[1718978575707,2.30323,3473.4,3472.7,2.30367]
[1718978576041,5.30309,3473.6,3472.7,2.764417]
[1718978576191,3.0,3473.6,3472.9,2.30353]
[1718978576524,3.0,3473.6,3473.0,2.30347]
[1718978576739,3.0,3473.6,3473.0,2.30346]
[1718978577024,3.0,3473.6,3472.7,0.460747]
[1718978577025,7.4,3473.7,3472.7,0.460747]
[1718978577326,2.30314,3473.6,3472.9,2.30353]
[1718978577699,5.30314,3473.6,3472.8,2.3036]
[1718978577906,2.30316,3473.5,3472.8,2.3036]
[1718978578695,5.3031,3473.6,3472.8,2.3036]
[1718978579020,5.3031,3473.6,3472.9,2.30354]
[1718978579229,2.30319,3473.5,3472.7,2.30367]
[1718978579534,3.0,3473.5,3472.8,2.30361]
[1718978579689,2.3031,3473.6,3472.8,2.30361]
[1718978579690,5.3031,3473.6,3472.8,2.30361]
[1718978579891,2.30333,3473.3,3472.4,2.30387]
[1718978580118,2.30329,3473.3,3472.3,2.30388]
[1718978580409,3.0,3473.6,3472.6,2.30373]
[1718978580611,3.0,3473.6,3472.8,2.3036]
[1718978580819,2.266,3473.4,3472.4,2.30387]
[1718978580992,2.30335,3473.3,3472.3,2.30394]
[1718978581204,2.30347,3473.1,3472.3,2.30394]
[1718978581630,2.30349,3473.0,3472.1,2.30402]
[1718978581816,2.30387,3472.5,3471.8,2.4227848]
[1718978582139,2.30373,3472.7,3472.0,2.30414]
[1718978582293,9.70367,3472.8,3471.9,2.30419]
[1718978582502,3.0,3472.7,3471.9,2.30419]
[1718978582854,3.0,3472.7,3472.1,2.30407]
[1718978582995,3.0,3472.7,3472.4,2.30382]
[1718978583195,3.0,3472.7,3471.9,0.70313448]
[1718978583391,3.0,3472.7,3472.0,2.30413]
[1718978583657,3.0,3472.7,3471.8,0.1185248]
[1718978583810,3.0,3472.7,3472.3,2.30394]
[1718978583994,3.0,3472.7,3471.9,2.30419]
[1718978583995,3.0,3472.7,3472.1,2.30407]
[1718978584419,3.0,3472.7,3472.2,2.304]
[1718978584621,3.0,3472.7,3471.9,2.30419]
[1718978584802,2.30381,3472.5,3471.8,0.1185248]
[1718978585247,2.30401,3472.2,3471.8,0.1185248]
[1718978585906,3.0,3472.3,3471.8,0.1185248]
[1718978586328,5.30395,3472.3,3471.8,0.1185248]
[1718978586527,2.30402,3472.2,3471.8,0.1185248]
[1718978587654,2.30421,3471.9,3471.8,0.1185248]
[1718978587806,5.30398,3472.3,3471.8,0.1185248]
[1718978588003,2.30421,3471.9,3471.8,0.1185248]
[1718978588410,5.30413,3472.1,3471.8,0.1185248]
[1718978588619,2.30413,3472.1,3471.8,0.1185248]
[1718978588809,3.0,3472.1,3471.8,0.1185248]
[1718978589013,3.0,3472.3,3471.8,0.1185248]
[1718978589213,2.30378,3472.6,3471.8,2.4227948]
[1718978589424,2.30386,3472.5,3471.8,0.1185248]
[1718978589863,2.30389,3472.4,3471.8,0.1185248]
[1718978590005,2.30413,3472.1,3471.8,0.1185248]
[1718978590441,2.30415,3472.0,3471.8,0.1185248]
[1718978590955,2.30408,3472.1,3471.8,0.1185248]
[1718978591120,2.3042,3472.0,3471.8,0.1185248]
[1718978591318,2.30421,3471.9,3471.8,0.1185248]
[1718978591523,7.61751,3471.9,3471.8,0.1185248]
[1718978591848,4.61751,3471.9,3471.8,0.1185248]
[1718978592015,7.61751,3471.9,3471.8,0.1185248]
[1718978592649,3.0,3471.9,3471.8,0.1185248]
[1718978592850,2.3411,3472.3,3471.8,0.1185248]
[1718978592851,2.30416,3472.0,3471.8,0.1185248]
[1718978593141,2.30402,3472.2,3471.8,0.1185248]
[1718978593142,2.30408,3472.1,3471.8,0.1185248]
[1718978593349,5.30408,3472.1,3471.8,0.1185248]
[1718978593553,3.0,3472.1,3471.8,0.1185248]
[1718978593713,4.64505,3472.3,3471.8,0.1185248]
[1718978593909,3.0,3472.2,3471.8,0.1185248]
[1718978594107,2.30376,3472.6,3471.9,2.30421]
[1718978594469,2.30376,3472.6,3471.8,2.66507128]
[1718978594637,3.0,3472.7,3471.8,0.36081128]
[1718978594843,5.30355,3472.9,3471.8,0.36081128]
[1718978595026,3.0,3472.9,3472.4,2.30385]
[1718978595226,3.0,3472.9,3472.1,2.30401]
[1718978595227,2.30355,3472.9,3472.1,2.30401]
[1718978595421,2.3035,3473.0,3472.2,2.534391]
[1718978595871,2.3035,3473.0,3472.3,2.30394]
[1718978596223,2.30343,3473.1,3472.3,2.30394]
[1718978596525,3.0,3473.3,3472.4,2.30386]
[1718978596728,2.2555,3473.5,3472.8,2.30359]
[1718978596981,3.0,3473.6,3472.8,2.30359]
[1718978597186,2.30343,3473.1,3471.8,0.36081128]
[1718978597389,2.30343,3473.1,3471.9,2.30421]
[1718978597390,2.30375,3472.6,3471.9,2.30421]
[1718978597569,2.30397,3472.3,3471.8,0.1185248]
[1718978597855,2.30369,3472.7,3471.8,0.1185248]
[1718978598055,2.3038,3472.6,3471.8,0.1185248]
[1718978598492,2.30376,3472.6,3471.8,2.4227448]
[1718978598657,3.0,3472.8,3472.1,2.4602]